bitfinex-derivatives/quotes_ETHF0:USTF0_20250217
["timestamp","ask_amount","ask_price","bid_price","bid_amount"]
[1739751472816,1.45996,2666.8,2666.6,0.74989]
[1739751473012,0.7101,2666.8,2666.7,0.74988]
[1739751474620,3.2327,2666.9,2666.8,0.74985]
[1739751478216,0.74987,2666.8,2666.7,0.74986]
[1739751478521,3.2327,2666.9,2666.6,0.7499]
[1739751478715,0.74987,2666.8,2666.6,0.7499]
[1739751479327,0.74987,2666.8,2666.6,0.74988]
[1739751479518,3.2327,2666.9,2666.6,0.74989]
[1739751479712,0.74989,2666.7,2666.5,0.75554915]
[1739751479922,0.74989,2666.7,2666.5,0.75553915]
[1739751480220,0.6696,2666.6,2666.5,0.75553915]
[1739751480417,0.6696,2666.6,2666.5,0.00562915]
[1739751480718,0.6696,2666.6,2666.5,0.75555915]
[1739751482618,1.4195,2666.6,2666.5,0.00562915]
[1739751483726,0.6696,2666.6,2666.5,0.75555915]
[1739751484623,0.6696,2666.6,2666.5,0.00562915]
[1739751484624,1.4195,2666.6,2666.5,0.00562915]
[1739751486119,0.6696,2666.6,2666.5,0.75555915]
[1739751487318,1.4195,2666.6,2666.5,0.00562915]
[1739751489618,1.4195,2666.6,2665.9,0.6553]
[1739751489619,0.6696,2666.6,2665.8,3.2078]
[1739751489921,0.74999,2666.3,2665.9,0.75008]
[1739751490221,3.2398,2666.2,2665.9,0.75008]
[1739751490422,3.98982,2666.2,2665.9,0.75008]
[1739751490616,3.2398,2666.2,2665.8,3.2078]
[1739751490819,2.514,2666.2,2666.1,0.75005]
[1739751491030,2.514,2666.3,2666.2,0.75002]
[1739751491815,3.264,2666.3,2666.1,0.75003]
[1739751492011,2.514,2666.3,2665.8,3.21342915]
[1739751492224,0.75006,2666.1,2665.9,0.75009]
[1739751492416,1.47583,2666.2,2666.0,0.75007]
[1739751492617,0.7258,2666.2,2666.0,0.75006]
[1739751492817,0.6909,2666.2,2666.0,0.75006]
[1739751493120,0.6909,2666.2,2666.1,0.75005]
[1739751493324,1.44093,2666.2,2665.8,3.21342915]
[1739751493528,0.6909,2666.2,2666.1,0.75005]
[1739751494024,0.6909,2666.2,2665.8,3.21342915]
[1739751494227,1.44092,2666.2,2665.8,3.21342915]
[1739751494522,0.6909,2666.2,2666.1,0.75005]
[1739751495727,4.67928,2666.4,2666.3,0.74999]
[1739751495728,3.2078,2666.4,2666.3,0.74999]
[1739751496027,5.7218,2666.4,2666.3,0.74999]
[1739751496726,6.47177,2666.4,2665.8,5.86698451]
[1739751497028,6.47177,2666.4,2666.3,0.74999]
[1739751497224,5.7218,2666.4,2666.3,0.74999]
[1739751498125,5.7218,2666.4,2665.8,5.86698451]
[1739751498126,6.4396,2666.7,2666.6,0.7499]
[1739751498525,0.7178,2666.7,2666.6,0.7499]
[1739751498728,2.514,2666.7,2666.6,0.7499]
[1739751499225,0.6683,2666.8,2666.7,0.74988]
[1739751499815,3.9179,2666.9,2666.4,5.08268]
[1739751500014,3.9179,2666.9,2666.8,0.74985]
[1739751500218,3.1944,2666.9,2666.8,0.74985]
[1739751500625,3.94423,2666.9,2666.4,3.2078]
[1739751500824,3.94423,2666.9,2666.7,0.74986]
[1739751501622,0.74985,2666.8,2666.6,0.74988]
[1739751501927,0.74985,2666.8,2666.6,0.74989]
[1739751502127,3.94425,2666.9,2666.6,0.74989]
[1739751502628,3.94425,2666.9,2666.4,3.2078]
[1739751503628,0.74986,2666.8,2666.6,0.74988]
[1739751503932,0.74986,2666.8,2666.6,0.7499]
[1739751505123,3.1944,2666.9,2666.4,3.2078]
[1739751505328,3.1944,2666.9,2666.3,0.74997]
[1739751505329,0.74993,2666.5,2666.3,0.74997]
[1739751505528,0.7044,2666.4,2666.3,0.74997]
[1739751509627,3.26394,2666.5,2666.4,0.74996]
[1739751509830,3.91804,2666.5,2666.3,0.74997]
[1739751510034,0.00249862,2666.4,2666.3,0.74997]
[1739751512333,0.00249862,2666.4,2665.9,2.0848]
[1739751512536,0.66989862,2666.4,2665.9,1.43739]
[1739751512836,2.14217862,2666.4,2666.1,0.75002]
[1739751513039,2.14217862,2666.4,2666.1,0.75003]
[1739751513540,0.75002,2666.2,2666.0,0.75007]
[1739751513731,1.39219862,2666.4,2666.0,0.75007]
[1739751513934,0.75002,2666.2,2665.9,0.6873]
[1739751514135,0.75002,2666.2,2666.1,0.75005]
[1739751514438,1.39219862,2666.4,2665.9,0.6873]
[1739751514935,0.66989862,2666.4,2666.3,0.74999]
[1739751515336,0.00249862,2666.4,2666.3,0.74999]
[1739751518450,0.00249862,2666.4,2666.1,3.66503]
[1739751518648,1.35289862,2666.4,2666.1,3.66503]
[1739751518848,1.4716,2666.3,2666.1,3.66503]
[1739751519042,0.7216,2666.3,2666.1,2.915]
[1739751519249,0.75002,2666.2,2666.1,2.915]
[1739751519451,3.26302,2666.2,2666.1,2.915]
[1739751521848,0.7501,2665.9,2665.8,0.00562915]
[1739751522444,2.0831,2665.9,2665.8,0.00562915]
[1739751525155,1.333,2665.9,2665.8,0.00562915]
[1739751525356,2.0831,2665.9,2665.8,0.00562915]
[1739751525854,1.333,2665.9,2665.8,0.00562915]
[1739751526049,3.847,2665.9,2665.8,0.75575915]
[1739751526244,4.5971,2665.9,2665.8,0.00562915]
[1739751527950,6.50055536,2665.9,2665.0,0.6639]
[1739751528157,6.50055536,2665.9,2664.8,0.7504]
[1739751528158,3.2078,2665.1,2664.8,0.7504]
[1739751528454,2.13727,2665.0,2664.6,2.65355536]
[1739751528655,2.83906,2665.0,2664.6,2.65355536]
[1739751528854,2.0887,2665.0,2664.8,0.7504]
[1739751529053,2.83907,2665.0,2664.6,3.40402536]
[1739751529250,2.83907,2665.0,2664.6,0.00562915]
[1739751529251,2.0887,2665.0,2664.6,0.00562915]
[1739751529453,0.7504,2664.9,2664.6,0.00562915]
[1739751529649,5.2965,2665.0,2664.6,0.00562915]
[1739751529859,6.04687,2665.0,2664.6,0.75606915]
[1739751530259,5.2965,2665.0,2664.6,0.75606915]
[1739751530559,0.7504,2664.9,2664.6,0.75608915]
[1739751531055,0.75041,2664.8,2664.6,0.00562915]
[1739751531959,5.2965,2665.0,2664.6,0.00562915]
[1739751532147,0.75039,2664.9,2664.6,0.75608915]
[1739751532346,0.75044,2664.7,2664.6,0.00562915]
[1739751532552,2.514,2664.7,2664.6,0.00562915]
[1739751533455,3.26444,2664.7,2664.6,0.00562915]
[1739751534058,3.26444,2664.7,2664.6,0.75609915]
[1739751534059,2.514,2664.7,2664.6,0.75609915]
[1739751534249,2.514,2664.7,2664.6,0.00562915]
[1739751534558,3.26444,2664.7,2664.6,0.00562915]
[1739751535356,2.514,2664.7,2664.6,0.00562915]
[1739751535949,2.514,2664.7,2664.6,0.75609915]
[1739751536459,6.04686,2665.0,2664.7,0.75043]
[1739751536656,2.514,2664.9,2664.7,0.75043]
[1739751537157,2.514,2664.9,2664.6,0.00562915]
[1739751537660,5.2965,2665.0,2664.6,0.00562915]
[1739751537959,5.7218,2665.0,2664.9,0.75038]
[1739751539063,6.47216,2665.0,2664.7,2.0671]
[1739751539259,5.7218,2665.0,2664.8,0.75041]
[1739751539667,7.0602,2665.0,2664.8,0.75041]
[1739751539962,7.81056,2665.0,2664.8,0.75041]
[1739751540264,7.0602,2665.0,2664.6,0.00562915]
[1739751540859,7.0602,2665.0,2664.9,0.75038]
[1739751541059,7.0602,2665.0,2664.8,0.75039]
[1739751541459,0.75039,2664.9,2664.7,0.75043]
[1739751541767,7.0602,2665.0,2664.6,0.00562915]
[1739751541962,0.75042,2664.8,2664.6,0.00562915]
[1739751542163,7.0602,2665.0,2664.8,0.75041]
[1739751542668,7.81056,2665.0,2664.8,0.75041]
[1739751542867,7.0602,2665.0,2664.9,0.75038]
[1739751543165,7.0602,2665.0,2664.6,0.00562915]
[1739751543360,7.81056,2665.0,2664.8,0.75041]
[1739751543759,3.2078,2665.0,2664.9,0.75038]
[1739751544064,2.514,2665.1,2665.0,0.75035]
[1739751545065,0.67362915,2665.2,2665.1,0.75033]
[1739751545269,3.18762915,2665.2,2665.1,0.75033]
[1739751545465,0.00562915,2665.2,2665.1,0.75033]
[1739751545672,2.514,2665.5,2665.1,3.2078]
[1739751545869,5.34149,2666.0,2665.7,0.75015]
[1739751546168,2.514,2665.8,2665.7,0.75015]
[1739751546363,5.2811,2666.0,2665.5,2.077]
[1739751546572,2.514,2665.9,2665.8,0.75013]
[1739751547069,5.2811,2666.0,2665.8,0.75013]
[1739751547070,7.80072915,2666.0,2665.8,0.75013]
[1739751547275,6.41712915,2666.0,2665.5,2.077]
[1739751547565,0.00562915,2666.0,2665.9,0.7501]
[1739751548472,0.00562915,2666.0,2665.9,3.40365536]
[1739751548866,0.00249862,2666.4,2666.3,0.74999]
[1739751549070,0.00249862,2666.4,2666.3,3.40354536]
[1739751549563,0.00249862,2666.4,2666.3,4.79534536]
[1739751549964,3.6256,2667.3,2666.3,4.79534536]
[1739751549965,0.74975,2667.2,2666.3,25.0791512]
[1739751550164,0.00375278,2666.6,2666.5,0.74993]
[1739751550365,0.00375278,2666.6,2666.5,3.95773]
[1739751550563,0.00375278,2666.6,2666.5,14.01254425]
[1739751550763,0.00375278,2666.6,2666.5,8.01254425]
[1739751550970,0.00375278,2666.6,2666.5,10.66609961]
[1739751551171,0.00375278,2666.6,2666.5,6.61128536]
[1739751554265,0.00375278,2666.6,2666.5,5.86135536]
[1739751554468,0.00375278,2666.6,2666.5,6.61128536]
[1739751554668,0.00375278,2666.6,2666.5,3.2078]
[1739751554864,0.75366278,2666.6,2666.4,2.915]
[1739751555071,3.26666278,2666.6,2666.4,2.915]
[1739751555271,40.8,2666.5,2666.4,2.915]
[1739751555770,40.8,2666.5,2666.4,3.66496]
[1739751556371,0.00375278,2666.6,2666.5,0.74993]
[1739751556571,0.00375278,2666.6,2666.5,7.97048536]
[1739751560777,0.00375278,2666.6,2666.5,6.61128536]
[1739751561868,0.00375278,2666.6,2666.5,3.95773]
[1739751562470,0.00375278,2666.6,2666.5,0.74993]
[1739751564180,0.75365278,2666.6,2666.5,0.74993]
[1739751564769,0.74993,2666.5,2666.4,2.915]
[1739751565774,0.74993,2666.5,2666.3,0.74998]
[1739751566079,0.7018,2666.4,2666.3,0.74998]
[1739751566481,0.7018,2666.4,2666.2,0.74999]
[1739751566781,0.7018,2666.4,2666.3,0.74999]
[1739751566971,1.45176,2666.4,2666.3,0.74999]
[1739751567175,1.45176,2666.4,2666.2,0.75]
[1739751567370,0.6847,2666.3,2666.2,0.75]
[1739751567873,0.6847,2666.3,2666.1,0.00562915]
[1739751568181,0.75002,2666.2,2666.1,0.00562915]
[1739751568378,2.15151,2666.3,2666.1,0.00562915]
[1739751568777,2.15151,2666.3,2666.1,0.75566915]
[1739751570177,1.4015,2666.3,2666.1,0.00562915]
[1739751571280,0.75002,2666.2,2666.1,0.00562915]
[1739751572378,3.26202,2666.2,2666.1,0.00562915]
[1739751572584,5.7198,2666.2,2665.4,0.74200469]
[1739751572781,8.37335536,2666.2,2665.4,0.79133469]
[1739751573088,0.75009,2666.0,2665.7,0.75016]
[1739751573288,5.7198,2666.2,2665.6,5.86135536]
[1739751573480,0.75011,2665.9,2665.7,0.75016]
[1739751573780,0.75009,2666.0,2665.7,0.75016]
[1739751574089,0.75013,2665.9,2665.7,0.75016]
[1739751574381,5.7198,2666.2,2665.7,0.75016]
[1739751574582,5.7198,2666.2,2665.6,5.86135536]
[1739751574785,1.87512,2666.1,2665.6,6.61153536]
[1739751574981,1.87512,2666.1,2665.6,5.86135536]
[1739751575183,0.75016,2665.7,2665.6,5.86135536]
[1739751575385,1.87512,2666.1,2665.5,0.00562915]
[1739751575575,0.75019,2665.6,2665.5,0.00562915]
[1739751575778,0.6721,2666.0,2665.5,0.00562915]
[1739751575982,0.75019,2665.6,2665.5,0.00562915]
[1739751576481,0.6721,2666.0,2665.5,0.00562915]
[1739751576681,0.75011,2665.9,2665.6,0.75019]
[1739751576881,0.75012,2665.9,2665.7,0.75015]
[1739751577181,0.6721,2666.0,2665.6,0.75018]
[1739751577382,0.75019,2665.6,2665.5,0.00562915]
[1739751578484,0.6721,2666.0,2665.5,0.00562915]
[1739751578789,0.75019,2665.6,2665.5,0.00562915]
[1739751579089,0.75019,2665.6,2665.5,0.75583915]
[1739751579277,0.6721,2666.0,2665.5,0.00562915]
[1739751579587,0.75016,2665.7,2665.5,0.00562915]
[1739751579887,0.6721,2666.0,2665.5,0.00562915]
[1739751579888,0.75019,2665.6,2665.5,0.00562915]
[1739751580489,0.75015,2665.8,2665.6,0.75016]
[1739751580691,0.6721,2666.0,2665.6,2.65355536]
[1739751580991,0.75015,2665.8,2665.6,2.65355536]
[1739751581184,0.75015,2665.8,2665.7,0.75016]
[1739751581384,0.6721,2666.0,2665.7,0.75016]
[1739751581883,0.75012,2665.9,2665.6,3.32795536]
[1739751582084,0.6721,2666.0,2665.6,3.32795536]
[1739751582282,0.6721,2666.0,2665.9,0.7501]
[1739751582480,3.2078,2666.9,2665.9,8.65355536]
[1739751582681,1.3773,2666.8,2666.5,0.74993]
[1739751582884,2.12716,2666.8,2666.5,0.74993]
[1739751583078,1.3773,2666.8,2666.5,0.74993]
[1739751583286,2.12717,2666.8,2666.5,0.74993]
[1739751583690,1.3773,2666.8,2666.5,0.74993]
[1739751583893,0.74988,2666.7,2666.5,0.74993]
[1739751584186,0.74988,2666.7,2666.5,3.95773]
[1739751584388,0.74988,2666.7,2666.5,0.74993]
[1739751584986,0.74988,2666.7,2666.5,3.95773]
[1739751585293,1.3773,2666.8,2666.5,3.2078]
[1739751585488,1.3773,2666.8,2666.2,5.86135536]
[1739751585788,0.74995,2666.5,2666.3,8.01976858]
[1739751585984,0.74996,2666.4,2666.3,8.01976858]
[1739751586184,0.75003,2666.2,2665.9,6.61144536]
[1739751586381,3.8836,2666.5,2665.9,2.65355536]
[1739751586687,0.75011,2665.9,2665.7,0.75015]
[1739751586888,0.75011,2665.9,2665.7,0.75016]
[1739751587192,0.7501,2666.0,2665.6,6.53175536]
[1739751587385,0.75009,2666.0,2665.6,6.53175536]
[1739751587583,0.75012,2665.9,2665.6,7.28193536]
[1739751587786,3.2068,2666.1,2665.6,6.53175536]
[1739751587987,0.75016,2665.8,2665.6,5.86135536]
[1739751588196,3.2068,2666.1,2665.6,5.86135536]
[1739751588492,0.75019,2665.6,2665.5,0.00562915]
[1739751589390,3.95799,2665.6,2665.5,0.00562915]
[1739751589584,4.65969,2665.6,2665.5,0.00562915]
[1739751591086,7.17069,2665.6,2665.5,0.00562915]
[1739751600894,7.17069,2665.6,2664.7,2.65355536]
[1739751600895,15.07405536,2665.6,2664.6,3.2078]
[1739751601090,0.7505,2664.5,2664.4,2.65355536]
[1739751601297,0.75052,2664.4,2664.3,3.91532147]
[1739751601901,0.75052,2664.4,2664.3,0.04112147]
[1739751602498,0.75058,2664.2,2664.1,0.00562915]
[1739751603508,2.512,2664.5,2664.1,0.00562915]
[1739751603705,0.00562915,2664.6,2664.1,0.00562915]
[1739751604004,0.00562915,2664.6,2664.5,0.7505]
[1739751604211,0.00562915,2664.6,2664.5,3.9583]
[1739751604420,2.512,2665.1,2664.5,3.8899]
[1739751604611,2.512,2665.1,2664.7,2.65355536]
[1739751604912,2.512,2665.1,2665.0,3.40391536]
[1739751605114,3.8884,2665.4,2665.2,0.7503]
[1739751605315,3.8884,2665.4,2665.1,0.6743]
[1739751605520,3.8884,2665.4,2664.8,3.2078]
[1739751606019,0.7132,2665.3,2664.8,3.2078]
[1739751606311,0.7132,2665.3,2665.0,0.75035]
[1739751606510,0.7503,2665.2,2664.9,0.75037]
[1739751606712,0.75034,2665.1,2664.8,3.9582]
[1739751606912,0.7132,2665.3,2664.8,3.2078]
[1739751607219,0.75027,2665.3,2664.9,0.75036]
[1739751607514,0.75031,2665.2,2664.9,0.75036]
[1739751607818,0.75031,2665.2,2664.8,3.9582]
[1739751608313,4.607,2665.4,2665.1,0.75032]
[1739751608509,5.35725,2665.4,2665.0,0.75033]
[1739751609111,4.607,2665.4,2665.0,0.75033]
[1739751609310,5.35725,2665.4,2665.1,0.75032]
[1739751609520,0.75028,2665.3,2665.0,0.75034]
[1739751609708,4.607,2665.4,2664.8,3.2078]
[1739751610014,1.3992,2665.4,2665.1,0.75031]
[1739751610222,1.3992,2665.4,2665.0,2.65355536]
[1739751610415,1.3992,2665.4,2665.2,0.75029]
[1739751610815,1.3992,2665.4,2665.0,2.65355536]
[1739751611120,2.14944,2665.4,2665.1,0.7503]
[1739751611318,0.75028,2665.3,2665.0,2.65355536]
[1739751611518,4.607,2665.4,2664.9,0.75037]
[1739751611818,5.35725,2665.4,2664.8,3.2078]
[1739751612119,4.607,2665.4,2665.1,0.7503]
[1739751612422,4.607,2665.4,2665.0,0.75034]
[1739751612822,0.75029,2665.3,2665.0,0.75034]
[1739751613518,4.607,2665.4,2664.8,3.2078]
[1739751613822,0.75033,2665.1,2664.8,3.9582]
[1739751614014,0.75032,2665.2,2664.8,3.2078]
[1739751614325,0.75038,2664.9,2664.8,3.2078]
[1739751615517,3.884,2665.0,2664.2,2.915]
[1739751615711,1.322,2664.8,2664.4,2.65355536]
[1739751616024,3.2078,2665.0,2664.9,0.75038]
[1739751616220,3.2078,2665.0,2664.8,0.7504]
[1739751616718,3.2078,2665.0,2664.8,0.75038]
[1739751616924,3.2078,2665.0,2664.9,0.75038]
[1739751617626,3.2078,2665.3,2664.7,5.86135536]
[1739751617920,5.7188,2665.3,2664.8,0.6796]
[1739751618112,0.75032,2665.2,2664.8,1.42999]
[1739751618317,6.46907,2665.3,2664.8,0.6796]
[1739751618517,5.7188,2665.3,2664.8,0.6796]
[1739751618719,6.46908,2665.3,2665.0,0.75033]
[1739751618927,6.46907,2665.3,2665.1,0.75032]
[1739751619129,1.322,2665.4,2665.0,2.65355536]
[1739751619319,2.511,2665.4,2665.3,0.75027]
[1739751619520,0.00562915,2665.6,2665.4,0.75023]
[1739751620219,0.00562915,2665.6,2665.5,0.75021]
[1739751620425,0.00562915,2665.6,2665.0,5.86135536]
[1739751620620,0.00562915,2665.6,2665.1,8.07872073]
[1739751620819,0.75023,2665.5,2665.0,5.86135536]
[1739751621026,0.75023,2665.5,2665.2,0.75029]
[1739751621826,0.00562915,2665.6,2665.0,5.86135536]
[1739751622134,0.75581915,2665.6,2665.4,0.75023]
[1739751622520,0.75021,2665.5,2665.3,0.75025]
[1739751622726,0.75024,2665.5,2665.0,5.86135536]
[1739751623227,0.75024,2665.5,2665.2,0.75029]
[1739751623924,0.75024,2665.5,2665.1,0.75033]
[1739751624128,3.2078,2665.4,2664.8,2.915]
[1739751624321,3.1861,2665.3,2664.8,3.2078]
[1739751624526,3.1861,2665.3,2665.2,0.7503]
[1739751625724,2.511,2665.3,2665.2,0.7503]
[1739751625929,0.00562915,2665.6,2665.4,0.75021]
[1739751626232,0.00562915,2665.6,2665.5,0.75021]
[1739751629829,0.00562915,2665.6,2665.5,3.40376536]
[1739751631234,3.2078,2666.3,2665.5,17.45703281]
[1739751631428,2.511,2666.3,2666.2,0.75002]
[1739751631629,1.3658,2666.4,2666.3,0.74999]
[1739751631832,2.11578,2666.4,2666.2,0.75001]
[1739751632430,1.3658,2666.4,2666.2,0.75001]
[1739751632626,2.11577,2666.4,2666.2,0.75001]
[1739751632924,1.3658,2666.4,2666.2,0.75001]
[1739751633129,1.3658,2666.4,2666.3,0.74999]
[1739751633329,2.11576,2666.4,2666.3,0.74999]
[1739751633534,1.3658,2666.4,2666.3,0.74999]
[1739751634133,2.11578,2666.4,2666.0,5.86698451]
[1739751634333,1.3658,2666.4,2666.3,0.74999]
[1739751636235,1.3658,2666.4,2666.0,5.86698451]
[1739751636638,1.3658,2666.4,2666.3,0.74999]
[1739751639134,2.51375278,2666.6,2666.0,5.86698451]
[1739751639333,0.00375278,2666.6,2666.5,0.74993]
[1739751643551,2.0341,2667.2,2666.5,14.58789573]
[1739751643748,2.0341,2667.2,2667.1,0.74976]
[1739751644044,2.0341,2667.2,2666.7,2.65355536]
[1739751644448,2.0341,2667.2,2667.1,0.74976]
[1739751645845,2.0341,2667.2,2666.9,3.2078]
[1739751646148,2.0341,2667.2,2667.1,0.74976]
[1739751649257,1.3735,2667.2,2667.1,0.74976]
[1739751649455,1.374,2667.5,2667.4,0.74968]
[1739751649756,2.509,2667.8,2667.7,0.7496]
[1739751649944,1.374,2667.8,2667.7,0.7496]
[1739751650554,1.374,2667.8,2667.7,3.40315536]
[1739751653855,0.6989,2667.8,2667.7,3.40315536]
[1739751654756,0.7179,2668.1,2667.7,2.65355536]
[1739751654952,1.46738,2668.1,2668.0,0.74951]
[1739751655153,0.7179,2668.1,2668.0,0.74951]
[1739751660258,0.7179,2668.1,2668.0,3.40306536]
[1739751660455,0.7002,2668.2,2668.1,0.74948]
[1739751660759,0.7002,2668.2,2667.6,6.3769]
[1739751660760,0.74955,2667.9,2667.6,3.2078]
[1739751661066,0.6551,2667.8,2667.2,0.00562915]
[1739751661260,0.74963,2667.6,2667.3,0.7497]
[1739751661456,0.6804,2667.5,2667.3,0.7497]
[1739751661763,0.712,2667.7,2667.6,0.74962]
[1739751662167,0.712,2667.7,2667.4,2.65355536]
[1739751662361,0.74965,2667.6,2667.3,0.7497]
[1739751662555,0.712,2667.7,2667.5,0.74964]
[1739751662556,3.22,2667.7,2667.5,0.74964]
[1739751662760,3.22,2667.7,2667.6,0.74962]
[1739751662954,0.712,2667.7,2667.6,0.74962]
[1739751664465,0.74964,2667.6,2667.4,3.2078]
[1739751664662,0.712,2667.7,2667.2,0.00562915]
[1739751664861,5.7148,2667.6,2667.2,0.00562915]
[1739751665267,0.74971,2667.3,2667.2,0.00562915]
[1739751665767,3.95751,2667.3,2667.2,0.00562915]
[1739751665967,0.74977,2667.1,2666.7,0.74986]
[1739751666171,3.25677,2667.1,2666.7,0.74986]
[1739751666463,3.2078,2666.9,2666.4,2.915]
[1739751666669,0.74986,2666.8,2666.4,3.66495]
[1739751666970,2.508,2666.7,2666.4,0.74995]
[1739751667166,0.6559,2666.6,2666.4,0.74995]
[1739751667471,0.6559,2666.6,2666.3,3.96339915]
[1739751667666,0.6559,2666.6,2666.3,3.21342915]
[1739751667868,1.3276,2666.6,2666.3,3.96340915]
[1739751668271,1.3276,2666.6,2666.3,3.21342915]
[1739751668671,0.74994,2666.5,2666.3,3.21342915]
[1739751669065,0.6541,2666.4,2666.3,3.21342915]
[1739751669272,0.6541,2666.4,2666.3,3.96341915]
[1739751669467,0.6559,2666.6,2666.3,3.21342915]
[1739751669673,0.6559,2666.6,2666.5,0.74993]
[1739751670376,0.6559,2666.6,2666.3,3.21342915]
[1739751670569,0.6559,2666.6,2666.3,3.96341915]
[1739751670770,0.6559,2666.6,2666.3,3.96338915]
[1739751670969,0.6559,2666.6,2666.4,0.74996]
[1739751671172,0.6559,2666.6,2666.3,3.21342915]
[1739751671371,0.6559,2666.6,2666.5,0.74993]
[1739751671581,0.6879,2666.7,2666.6,0.7499]
[1739751671965,0.6879,2666.7,2666.5,2.65355536]
[1739751672172,1.43779,2666.7,2666.3,3.96340915]
[1739751672477,0.6879,2666.7,2666.3,3.21342915]
[1739751673372,0.00562915,2666.9,2666.5,2.65355536]
[1739751673564,0.00562915,2666.9,2666.8,3.40340536]
[1739751674574,1.41063,2667.6,2666.8,2.65355536]
[1739751674773,0.7079,2667.6,2667.4,0.74965]
[1739751674977,0.7079,2667.6,2667.1,5.86135536]
[1739751675170,0.7079,2667.6,2667.5,0.74965]
[1739751675370,1.45753,2667.6,2667.3,0.74968]
[1739751675773,0.7079,2667.6,2667.2,0.686]
[1739751676075,0.7079,2667.6,2667.1,2.65355536]
[1739751676076,0.74972,2667.3,2667.1,2.65355536]
[1739751676274,0.7079,2667.6,2666.8,2.65355536]
[1739751676576,3.2078,2667.3,2666.5,3.36035536]
[1739751676778,0.74978,2667.1,2666.8,0.74985]
[1739751676977,0.7025,2667.0,2666.5,3.36035536]
[1739751677278,3.2078,2666.9,2666.5,2.65355536]
[1739751677479,0.74989,2666.7,2666.5,2.65355536]
[1739751677879,3.9233,2666.9,2666.5,3.40346536]
[1739751678080,3.9233,2666.9,2666.5,2.65355536]
[1739751678279,0.7499,2666.6,2666.3,3.21342915]
[1739751678481,0.74996,2666.4,2666.3,0.00562915]
[1739751678676,0.7009,2666.5,2666.3,0.00562915]
[1739751678677,1.45085,2666.5,2666.3,0.00562915]
[1739751678883,0.7009,2666.5,2666.3,0.00562915]
[1739751679081,1.45084,2666.5,2666.3,0.00562915]
[1739751679381,0.7009,2666.5,2666.3,0.00562915]
[1739751680276,0.7009,2666.5,2666.4,0.74996]
[1739751680481,2.508,2666.8,2666.3,0.00562915]
[1739751680973,0.74996,2666.4,2666.3,0.00562915]
[1739751681575,0.6754,2666.4,2666.3,0.00562915]
[1739751682279,3.93336,2666.4,2666.3,0.00562915]
[1739751682472,3.1834,2666.4,2666.3,0.00562915]
[1739751683372,3.93336,2666.4,2666.3,0.00562915]
[1739751683873,4.62306,2666.4,2666.3,0.00562915]
[1739751684980,10.62306,2666.4,2666.3,0.00562915]
[1739751685280,0.75014,2665.8,2665.5,0.75021]
[1739751685481,0.75014,2665.8,2665.3,23.43655536]
[1739751685677,0.75014,2665.8,2665.5,0.75021]
[1739751685875,0.7102,2665.8,2665.4,3.2078]
[1739751686075,0.7102,2665.8,2665.7,0.75016]
[1739751686278,0.7102,2665.8,2665.6,0.75018]
[1739751686880,0.7102,2665.8,2665.3,23.44218451]
[1739751687274,0.7102,2665.8,2665.7,0.75016]
[1739751688689,0.7102,2665.8,2665.4,3.2078]
[1739751688889,1.46034,2665.8,2665.5,0.75019]
[1739751689192,0.7102,2665.8,2665.7,0.75016]
[1739751689484,0.00562915,2665.9,2665.8,0.75013]
[1739751690591,0.00562915,2665.9,2665.7,1.42874]
[1739751690792,0.00562915,2665.9,2665.8,0.75013]
[1739751691390,0.00562915,2665.9,2665.6,2.65355536]
[1739751691892,0.00562915,2665.9,2665.8,0.75013]
[1739751692090,0.00562915,2665.9,2665.7,0.75014]
[1739751692293,0.75013,2665.8,2665.6,0.75018]
[1739751692800,0.719,2665.8,2665.7,0.75014]
[1739751693287,0.719,2665.8,2665.6,0.75017]
[1739751693991,1.46915,2665.8,2665.5,3.66519]
[1739751694388,1.46914,2665.8,2665.6,0.75017]
[1739751694589,3.9495,2665.8,2665.6,0.75016]
[1739751694789,0.75016,2665.7,2665.5,3.6652]
[1739751695195,4.69964,2665.8,2665.6,0.75018]
[1739751695595,0.75016,2665.7,2665.5,3.66521]
[1739751696494,3.9495,2665.8,2665.4,0.7034]
[1739751696687,1.4415,2665.8,2665.4,0.7034]
[1739751696899,0.00562915,2665.9,2665.8,0.75013]
[1739751697308,0.00562915,2665.9,2665.8,0.684]
[1739751697609,0.00562915,2665.9,2665.8,0.75013]
[1739751698010,0.75574915,2665.9,2665.7,3.2078]
[1739751698206,2.51362915,2665.9,2665.7,3.2078]
[1739751698509,0.7243,2665.8,2665.7,3.95794]
[1739751699108,0.00562915,2665.9,2665.8,0.75013]
[1739751699606,0.00562915,2665.9,2665.8,1.43413]
[1739751700303,0.00562915,2665.9,2665.8,9.49173345]
[1739751702309,3.2318,2666.6,2666.0,1.87514]
[1739751702612,1.47372,2666.6,2666.4,0.74995]
[1739751702803,5.7158,2666.7,2666.3,2.65355536]
[1739751703004,1.47413,2666.9,2666.6,0.7499]
[1739751703214,0.7243,2666.9,2666.6,2.65355536]
[1739751703506,0.7243,2666.9,2666.8,0.74985]
[1739751703911,3.1892,2667.1,2667.0,0.74979]
[1739751704109,2.508,2667.1,2667.0,3.40334536]
[1739751704302,3.2078,2667.3,2667.0,2.65355536]
[1739751704506,0.6539,2667.4,2667.3,0.74971]
[1739751705013,6.46543,2667.6,2667.3,0.74971]
[1739751705014,3.2078,2667.6,2667.3,2.65355536]
[1739751705205,3.1619,2667.8,2667.7,0.7496]
[1739751705411,3.9573,2668.1,2667.6,2.65355536]
[1739751705412,2.507,2668.0,2667.6,2.65355536]
[1739751705714,2.507,2668.0,2667.8,0.74956]
[1739751706306,3.2078,2668.1,2668.0,0.74951]
[1739751706510,0.6812,2668.2,2668.0,0.7495]
[1739751706904,0.6812,2668.2,2667.9,3.40307536]